fUSD/lending_fUSD_20240215
["ID","MTS","AMOUNT","RATE_DAILY","PERIOD"]
[314105876,1707983442993,-150.91484716,0.00040023,30]
[314105877,1707983443002,-151.021518,0.00040098,21]
[314105878,1707983443011,-552.79640843,0.00040109,5]
[314105879,1707983443020,-1351.8,0.00040137,2]
[314105880,1707983443029,-2360.567,0.00040153,2]
[314105881,1707983443038,-1115.0,0.0004018,20]
[314105882,1707983443047,-780.0,0.0004018,20]
[314105883,1707983443055,-151.021518,0.00040198,19]
[314105892,1707983443182,-1011.0,0.000402,7]
[314105894,1707983443192,-500.0,0.0004024,10]
[314105896,1707983443201,-251.57,0.00040243,2]
[314105898,1707983443211,-500.0,0.00040272,7]
[314105900,1707983443220,-621.53,0.00040273,7]
[314105902,1707983443229,-550.0,0.00040273,7]
[314105904,1707983443238,-1731.18,0.00040273,7]
[314105906,1707983443246,-1297.96,0.00040273,7]
[314105908,1707983443255,-500.0,0.00040273,7]
[314105910,1707983443266,-500.0,0.00040273,7]
[314105912,1707983443275,-1283.49,0.00040273,7]
[314105914,1707983443283,-500.0,0.00040273,7]
[314105916,1707983443293,-500.0,0.00040273,7]
[314105918,1707983443302,-632.25,0.00040273,7]
[314105920,1707983443311,-500.0,0.00040273,7]
[314105922,1707983443321,-841.47,0.00040273,7]
[314105924,1707983443330,-500.0,0.00040273,7]
[314105926,1707983443339,-500.0,0.00040273,7]
[314105928,1707983443348,-205.0,0.0004029,13]
[314105930,1707983443358,-196.1,0.00040293,2]
[314105932,1707983443367,-151.021518,0.00040298,19]
[314105934,1707983443376,-150.91484716,0.00040306,30]
[314105936,1707983443385,-155.67934135,0.00040316,30]
[314105938,1707983443394,-154.03006517,0.00040345,30]
[314105940,1707983443403,-150.91484716,0.00040348,30]
[314105942,1707983443412,-152.0,0.00040357,3]
[314105944,1707983443421,-454.14,0.00040382,2]
[314105946,1707983443430,-151.021518,0.00040398,19]
[314105947,1707983443439,-150.91484716,0.00040412,30]
[314105950,1707983443449,-1753.18,0.00040435,2]
[314105951,1707983443458,-151.021518,0.00040498,20]
[314105954,1707983443467,-1090.09673545,0.00040542,5]
[314105955,1707983443476,-621.53,0.00040547,7]
[314105957,1707983443486,-550.0,0.00040547,7]
[314105960,1707983443495,-1731.18,0.00040547,7]
[314105961,1707983443505,-1297.96,0.00040547,7]
[314105964,1707983443514,-500.0,0.00040547,7]
[314105966,1707983443524,-500.0,0.00040547,7]
[314105968,1707983443533,-1283.49,0.00040547,7]
[314105969,1707983443543,-500.0,0.00040547,7]
[314105971,1707983443554,-563.95,0.00040547,7]
[314105974,1707983443563,-500.0,0.00040547,7]
[314105976,1707983443573,-841.47,0.00040547,7]
[314105978,1707983443582,-500.0,0.00040547,7]
[314105980,1707983443591,-500.0,0.00040547,7]
[314105982,1707983443601,-160.93113565,0.00040559,2]
[314105984,1707983443611,-155.67934135,0.00040579,30]
[314105985,1707983443620,-1115.0,0.0004059,20]
[314105987,1707983443629,-780.0,0.0004059,20]
[314105990,1707983443639,-151.021518,0.00040598,20]
[314105992,1707983443649,-153.47733883,0.00040605,30]
[314105994,1707983443659,-150.91484716,0.00040639,30]
[314105996,1707983443668,-159.53892364,0.00040655,30]
[314105998,1707983443677,-159.69045391,0.00040691,30]
[314106000,1707983443687,-151.021518,0.00040698,20]
[314106002,1707983443696,-171.021518,0.00040698,19]
[314106004,1707983443705,-868.80600423,0.00040698,14]
[314106006,1707983443714,-166.36,0.000407,4]
[314106007,1707983443723,-166.36,0.000407,4]
[314106009,1707983443733,-94987.8194774,0.0004079,6]
[314106011,1707983443744,-151.021518,0.00040798,20]
[314106014,1707983443754,-151.021518,0.00040798,19]
[314106016,1707983443763,-1000.0,0.00040799,2]
[314106018,1707983443772,-500.0,0.000408,7]
[314106020,1707983443782,-500.0,0.000408,7]
[314106021,1707983443791,-500.0,0.000408,7]
[314106023,1707983443800,-500.0,0.000408,7]
[314106025,1707983443809,-500.0,0.000408,7]
[314106027,1707983443818,-500.0,0.000408,7]
[314106029,1707983443827,-500.0,0.000408,7]
[314106030,1707983443835,-500.0,0.000408,7]
[314106031,1707983443844,-500.0,0.000408,7]
[314106032,1707983443853,-500.0,0.000408,7]
[314106033,1707983443862,-500.0,0.000408,7]
[314106034,1707983443871,-500.0,0.000408,7]
[314106035,1707983443880,-500.0,0.000408,7]
[314106036,1707983443889,-500.0,0.000408,7]
[314106037,1707983443898,-500.0,0.000408,7]
[314106038,1707983443908,-500.0,0.000408,7]
[314106039,1707983443917,-500.0,0.000408,7]
[314106040,1707983443925,-500.0,0.000408,7]
[314106041,1707983443935,-500.0,0.000408,7]
[314106042,1707983443944,-500.0,0.000408,7]
[314106043,1707983443953,-500.0,0.000408,7]
[314106044,1707983443962,-500.0,0.000408,7]
[314106045,1707983443971,-500.0,0.000408,7]
[314106046,1707983443980,-500.0,0.000408,7]
[314106047,1707983443989,-500.0,0.000408,7]
[314106048,1707983443999,-500.0,0.000408,7]
[314106049,1707983444008,-500.0,0.000408,7]
[314106050,1707983444018,-500.0,0.000408,7]
[314106051,1707983444027,-500.0,0.000408,7]
[314106052,1707983444036,-500.0,0.000408,7]
[314106053,1707983444045,-500.0,0.000408,7]
[314106054,1707983444054,-500.0,0.000408,7]
[314106055,1707983444062,-500.0,0.000408,7]
[314106056,1707983444072,-500.0,0.000408,7]
[314106057,1707983444081,-500.0,0.000408,7]
[314106058,1707983444093,-500.0,0.000408,7]
[314106059,1707983444105,-500.0,0.000408,7]
[314106060,1707983444114,-500.0,0.000408,7]
[314106061,1707983444123,-500.0,0.000408,7]
[314106062,1707983444133,-500.0,0.000408,7]
[314106063,1707983444142,-500.0,0.000408,7]
[314106064,1707983444151,-500.0,0.000408,7]
[314106065,1707983444161,-500.0,0.000408,7]
[314106066,1707983444170,-500.0,0.000408,7]
[314106067,1707983444181,-500.0,0.000408,7]
[314106068,1707983444193,-500.0,0.000408,7]
[314106069,1707983444202,-500.0,0.000408,7]
[314106070,1707983444211,-500.0,0.000408,7]
[314106071,1707983444220,-500.0,0.000408,7]
[314106072,1707983444229,-500.0,0.000408,7]
[314106073,1707983444238,-500.0,0.000408,7]
[314106074,1707983444248,-500.0,0.000408,7]
[314106075,1707983444257,-500.0,0.000408,7]
[314106076,1707983444267,-500.0,0.000408,7]
[314106077,1707983444275,-500.0,0.000408,7]
[314106078,1707983444284,-500.0,0.000408,7]
[314106079,1707983444294,-500.0,0.000408,7]
[314106080,1707983444303,-500.0,0.000408,7]
[314106081,1707983444313,-500.0,0.000408,7]
[314106082,1707983444322,-545.51,0.000408,7]
[314106085,1707983444335,-500.0,0.000408,7]
[314106087,1707983444345,-621.53,0.00040821,7]
[314106088,1707983444355,-550.0,0.00040821,7]
[314106089,1707983444364,-1731.18,0.00040821,7]
[314106090,1707983444374,-1297.96,0.00040821,7]
[314106091,1707983444384,-500.0,0.00040821,7]
[314106092,1707983444393,-530.4723,0.00040821,7]
[314106093,1707983444403,-1283.49,0.00040821,7]
[314106094,1707983444413,-159.69045391,0.00040821,30]
[314106095,1707983444423,-500.0,0.00040821,7]
[314106096,1707983444433,-164.61739386,0.00040821,7]
[314106097,1707983444442,-841.47,0.00040821,7]
[314106098,1707983444452,-500.0,0.00040821,7]
[314106099,1707983444462,-446.88618638,0.00040821,7]
[314106100,1707983444471,-150.0,0.00040837,2]
[314106101,1707983444480,-168.56409583,0.0004085,2]
[314106102,1707983444490,-153.28330263,0.00040866,30]
[314106103,1707983444499,-150.91484716,0.00040876,30]
[314106104,1707983444508,-868.80600414,0.0004088,15]
[314106105,1707983444518,-151.021518,0.00040898,20]
[314106106,1707983444527,-151.021518,0.00040898,20]
[314106107,1707983444537,-154.78068023,0.000409,10]
[314106108,1707983444546,-159.53892364,0.00040909,30]
[314106109,1707983444555,-205.111,0.00040982,30]
[314106110,1707983444564,-600.0,0.00040986,7]
[314106111,1707983444573,-600.0,0.00040986,7]
[314106112,1707983444583,-600.0,0.00040986,7]
[314106113,1707983444593,-600.0,0.00040986,7]
[314106114,1707983444605,-600.0,0.00040986,7]
[314106115,1707983444615,-600.0,0.00040986,7]
[314106116,1707983444624,-600.0,0.00040986,7]
[314106117,1707983444633,-600.0,0.00040986,7]
[314106118,1707983444642,-600.0,0.00040986,7]
[314106119,1707983444652,-600.0,0.00040986,7]
[314106120,1707983444661,-200.0,0.00040987,16]
[314106121,1707983444671,-94987.8194774,0.0004099,6]
[314106122,1707983444681,-151.021518,0.00040998,20]
[314106123,1707983444692,-151.021518,0.00040998,20]
[314106124,1707983444704,-6446.62449003,0.00041,15]
[314106125,1707983444713,-1350.0,0.00041,12]
[314106126,1707983444722,-1115.0,0.00041,20]
[314106127,1707983444733,-158.92912267,0.00041,2]
[314106128,1707983444744,-150.0,0.00041,2]
[314106129,1707983444753,-150.0,0.00041,30]
[314106130,1707983444763,-780.0,0.00041,20]
[314106131,1707983444773,-1281.48860592,0.00041,20]
[314106132,1707983444782,-254.59973486,0.00041,20]
[314106133,1707983444791,-4000.0,0.00041,15]
[314106134,1707983444800,-587.34204916,0.00041,15]
[314106135,1707983444809,-142307.63,0.00041,30]
[314106136,1707983444818,-142307.63,0.00041,30]
[314106137,1707983444828,-3000.0,0.00041,45]
[314106138,1707983444837,-151.39,0.00041,2]
[314106139,1707983444847,-3000.0,0.0004101,45]
[314106140,1707983444856,-500.0,0.00041019,7]
[314106141,1707983444866,-5330.514484,0.0004102,45]
[314106142,1707983444878,-800.0,0.00041035,10]
[314106143,1707983444888,-200.0,0.00041048,10]
[314106144,1707983444897,-206.0,0.0004105,2]
[314106145,1707983444906,-868.80600414,0.00041062,15]
[314106146,1707983444916,-94987.8194774,0.0004109,7]
[314106147,1707983444925,-650.0,0.00041094,31]
[314106148,1707983444936,-650.0,0.00041094,31]
[314106149,1707983444946,-640.11523944,0.00041094,31]
[314106150,1707983444955,-500.0,0.00041094,7]
[314106151,1707983444964,-1000.0,0.00041095,2]
[314106152,1707983444974,-621.53,0.00041095,30]
[314106153,1707983444982,-600.0,0.00041095,30]
[314106154,1707983444991,-550.0,0.00041095,7]
[314106155,1707983445000,-1000.0,0.00041095,3]
[314106156,1707983445010,-415.44271043,0.00041095,3]
[314106157,1707983445024,-1731.18,0.00041095,30]
[314106158,1707983445033,-1297.96,0.00041095,30]
[314106159,1707983445043,-200.0,0.00041095,10]
[314106160,1707983445054,-500.0,0.00041095,30]
[314106161,1707983445063,-343.55705612,0.00041095,30]
[314106162,1707983445072,-440.59684786,0.00041095,30]
[314106163,1707983445081,-1283.49,0.00041095,30]
[314106164,1707983445092,-500.0,0.00041095,30]
[314106165,1707983445105,-841.47,0.00041095,30]
[314106166,1707983445114,-1000.0,0.00041095,30]
[314106167,1707983445123,-1014.79036984,0.00041095,30]
[314106168,1707983445132,-500.0,0.00041095,30]
[314106169,1707983445142,-2400.0,0.00041096,7]
[314106170,1707983445151,-175.45,0.00041096,2]
[314106171,1707983445161,-8231.01,0.00041096,2]
[314106172,1707983445170,-151.021518,0.00041098,21]
[314106173,1707983445180,-2018.82,0.000411,2]
[314106174,1707983445192,-200.0,0.00041136,20]
[314106175,1707983445201,-151.021518,0.00041198,21]
[314106176,1707983445210,-168.39,0.00041223,2]
[314106177,1707983445219,-150.0,0.00041232,2]
[314106178,1707983445228,-155.67934135,0.00041234,30]
[314106179,1707983445238,-158.822205,0.00041236,15]
[314106180,1707983445247,-800.0,0.00041236,15]
[314106181,1707983445256,-200.0,0.00041236,20]
[314106182,1707983445266,-868.80600414,0.00041244,15]
[314106183,1707983445276,-2000.0,0.00041293,2]
[314106184,1707983445285,-151.021518,0.00041298,21]
[314106185,1707983445294,-2110.0,0.000413,15]
[314106186,1707983445303,-200.0,0.000413,15]
[314106187,1707983445313,-1000.0,0.000413,44]
[314106188,1707983445322,-3000.0,0.000413,46]
[314106189,1707983445332,-3000.0,0.0004131,46]
[314106190,1707983445341,-5480.514483,0.0004132,47]
[314106191,1707983445350,-200.0,0.00041336,20]
[314106192,1707983445359,-500.0,0.00041336,30]
[314106193,1707983445371,-153.28330265,0.00041337,30]
[314106194,1707983445410,-500.0,0.00041349,30]
[314106195,1707983445420,-2614.7562519,0.00041358,4]
[314106196,1707983445429,-28047.6139803,0.00041358,4]
[314106197,1707983445440,-621.53,0.00041369,30]
[314106198,1707983445449,-600.0,0.00041369,30]
[314106199,1707983445459,-550.0,0.00041369,7]
[314106200,1707983445468,-1731.18,0.00041369,30]
[314106201,1707983445477,-1297.96,0.00041369,30]
[314106202,1707983445487,-200.0,0.00041369,11]
[314106203,1707983445497,-1283.49,0.00041369,30]
[314106204,1707983445506,-500.0,0.00041369,30]
[314106205,1707983445515,-841.47,0.00041369,30]
[314106206,1707983445524,-500.0,0.00041369,30]
[314106207,1707983445534,-151.021518,0.00041398,21]
[314106208,1707983445543,-1115.0,0.0004141,20]
[314106209,1707983445552,-780.0,0.0004141,20]
[314106210,1707983445562,-154.03006517,0.00041419,30]
[314106211,1707983445571,-868.80600414,0.00041426,15]
[314106212,1707983445580,-800.0,0.00041436,15]
[314106213,1707983445589,-200.0,0.00041436,20]
[314106214,1707983445598,-161.31047168,0.00041468,30]
[314106215,1707983445607,-159.68625956,0.0004149,2]
[314106216,1707983445616,-151.021518,0.00041498,21]
[314106217,1707983445626,-2000.0,0.000415,30]
[314106218,1707983445634,-196.307907,0.000415,31]
[314106219,1707983445644,-386.04868654,0.000415,2]
[314106220,1707983445653,-160.93113565,0.00041532,2]
[314106221,1707983445662,-1500.0,0.00041543,2]
[314106222,1707983445673,-5965.41364699,0.00041587,2]
[314106223,1707983445682,-852.20194957,0.00041587,2]
[314106224,1707983445693,-500.0,0.00041589,30]
[314106225,1707983445704,-151.0,0.00041589,14]
[314106226,1707983445714,-151.0,0.00041589,14]
[314106227,1707983445725,-151.0,0.00041589,14]
[314106228,1707983445893,-1105760.09325875,0.00041589,3]
[314106229,1707983445904,-500.0,0.0004159,2]
[314106230,1707983445915,-500.0,0.0004159,2]
[314106231,1707983445925,-500.0,0.0004159,2]
[314106232,1707983445936,-500.0,0.0004159,2]
[314106233,1707983445946,-500.0,0.0004159,2]
[314106234,1707983445956,-500.0,0.0004159,2]
[314106235,1707983445966,-500.0,0.0004159,2]
[314106236,1707983445976,-500.0,0.0004159,2]
[314106237,1707983445986,-500.0,0.0004159,2]
[314106238,1707983445997,-500.0,0.0004159,2]
[314106239,1707983446007,-500.0,0.0004159,2]
[314106240,1707983446017,-500.0,0.0004159,2]
[314106241,1707983446027,-500.0,0.0004159,2]
[314106242,1707983446038,-500.0,0.0004159,2]
[314106243,1707983446047,-500.0,0.0004159,2]
[314106244,1707983446057,-500.0,0.0004159,2]
[314106245,1707983446067,-500.0,0.0004159,2]
[314106246,1707983446077,-500.0,0.0004159,2]
[314106247,1707983446088,-500.0,0.0004159,2]
[314106248,1707983446101,-500.0,0.0004159,2]
[314106249,1707983446112,-500.0,0.0004159,2]
[314106250,1707983446123,-500.0,0.0004159,2]
[314106251,1707983446133,-500.0,0.0004159,2]
[314106252,1707983446143,-500.0,0.0004159,2]
[314106253,1707983446153,-500.0,0.0004159,2]
[314106254,1707983446162,-500.0,0.0004159,2]
[314106255,1707983446171,-500.0,0.0004159,2]
[314106256,1707983446183,-500.0,0.0004159,2]
[314106257,1707983446194,-500.0,0.0004159,2]
[314106258,1707983446204,-500.0,0.0004159,2]
[314106259,1707983446214,-500.0,0.0004159,2]
[314106260,1707983446224,-500.0,0.0004159,2]
[314106261,1707983446234,-500.0,0.0004159,2]
[314106262,1707983446244,-500.0,0.0004159,2]
[314106263,1707983446254,-500.0,0.0004159,2]
[314106264,1707983446263,-500.0,0.0004159,2]
[314106265,1707983446277,-500.0,0.0004159,2]
[314106266,1707983446286,-500.0,0.0004159,2]
[314106267,1707983446296,-500.0,0.0004159,2]
[314106268,1707983446307,-500.0,0.0004159,2]
[314106269,1707983446316,-500.0,0.0004159,2]
[314106270,1707983446326,-500.0,0.0004159,2]
[314106271,1707983446335,-500.0,0.0004159,2]
[314106272,1707983446345,-284963.458432,0.0004159,7]
[314106273,1707983446355,-200.0,0.0004159,2]
[314106274,1707983446364,-500.0,0.0004159,2]
[314106275,1707983446374,-500.0,0.0004159,2]
[314106276,1707983446383,-500.0,0.0004159,2]
[314106277,1707983446393,-500.0,0.0004159,2]
[314106278,1707983446403,-500.0,0.0004159,2]
[314106279,1707983446413,-500.0,0.0004159,2]
[314106280,1707983446422,-500.0,0.0004159,2]
[314106281,1707983446431,-500.0,0.0004159,2]
[314106282,1707983446443,-500.0,0.0004159,2]
[314106283,1707983446453,-500.0,0.0004159,2]
[314106284,1707983446463,-500.0,0.0004159,2]
[314106285,1707983446472,-500.0,0.0004159,2]
[314106286,1707983446482,-500.0,0.0004159,2]
[314106287,1707983446492,-500.0,0.0004159,2]
[314106288,1707983446502,-500.0,0.0004159,2]
[314106289,1707983446512,-500.0,0.0004159,2]
[314106290,1707983446522,-500.0,0.0004159,2]
[314106291,1707983446531,-500.0,0.0004159,2]
[314106292,1707983446542,-500.0,0.0004159,2]
[314106293,1707983446552,-500.0,0.0004159,2]
[314106294,1707983446562,-500.0,0.0004159,2]
[314106295,1707983446571,-500.0,0.0004159,2]
[314106296,1707983446581,-500.0,0.0004159,2]
[314106297,1707983446590,-500.0,0.0004159,2]
[314106298,1707983446601,-500.0,0.0004159,2]
[314106299,1707983446611,-500.0,0.0004159,2]
[314106300,1707983446621,-500.0,0.0004159,2]
[314106301,1707983446631,-500.0,0.0004159,2]
[314106302,1707983446640,-500.0,0.0004159,2]
[314106303,1707983446650,-500.0,0.0004159,2]
[314106304,1707983446659,-500.0,0.0004159,2]
[314106305,1707983446669,-500.0,0.0004159,2]
[314106306,1707983446684,-500.0,0.0004159,2]
[314106307,1707983446696,-500.0,0.0004159,2]
[314106308,1707983446706,-500.0,0.0004159,2]
[314106309,1707983446716,-500.0,0.0004159,2]
[314106310,1707983446726,-500.0,0.0004159,2]
[314106311,1707983446736,-500.0,0.0004159,2]
[314106312,1707983446747,-500.0,0.0004159,2]
[314106313,1707983446757,-500.0,0.0004159,2]
[314106314,1707983446767,-500.0,0.0004159,2]
[314106315,1707983446778,-500.0,0.0004159,2]
[314106316,1707983446788,-500.0,0.0004159,2]
[314106317,1707983446797,-500.0,0.0004159,2]
[314106318,1707983446807,-500.0,0.0004159,2]
[314106319,1707983446816,-500.0,0.0004159,2]
[314106320,1707983446826,-500.0,0.0004159,2]
[314106321,1707983446840,-500.0,0.0004159,2]
[314106322,1707983446849,-500.0,0.0004159,2]
[314106323,1707983446860,-500.0,0.0004159,2]
[314106324,1707983446870,-500.0,0.0004159,2]
[314106325,1707983446881,-500.0,0.0004159,2]
[314106326,1707983446892,-500.0,0.0004159,2]
[314106327,1707983446901,-500.0,0.0004159,2]
[314106328,1707983446911,-500.0,0.0004159,2]
[314106329,1707983446920,-500.0,0.0004159,2]
[314106330,1707983446929,-300.0,0.0004159,2]
[314106331,1707983446938,-500.0,0.0004159,2]
[314106332,1707983446947,-500.0,0.0004159,2]
[314106334,1707983446958,-500.0,0.0004159,2]
[314106335,1707983446967,-500.0,0.0004159,2]
[314106336,1707983446976,-500.0,0.0004159,2]
[314106337,1707983446986,-500.0,0.0004159,2]
[314106338,1707983446995,-500.0,0.0004159,2]
[314106339,1707983447005,-500.0,0.0004159,2]
[314106340,1707983447014,-500.0,0.0004159,2]
[314106341,1707983447023,-500.0,0.0004159,2]
[314106343,1707983447033,-500.0,0.0004159,2]
[314106345,1707983447042,-500.0,0.0004159,2]
[314106346,1707983447052,-500.0,0.0004159,2]
[314106347,1707983447061,-500.0,0.0004159,2]
[314106348,1707983447071,-500.0,0.0004159,2]
[314106349,1707983447080,-500.0,0.0004159,2]
[314106350,1707983447091,-500.0,0.0004159,2]
[314106351,1707983447101,-500.0,0.0004159,2]
[314106352,1707983447112,-500.0,0.0004159,2]
[314106353,1707983447122,-500.0,0.0004159,2]
[314106354,1707983447131,-500.0,0.0004159,2]
[314106355,1707983447142,-500.0,0.0004159,2]
[314106356,1707983447151,-500.0,0.0004159,2]
[314106357,1707983447161,-500.0,0.0004159,2]
[314106358,1707983447170,-500.0,0.0004159,2]
[314106359,1707983447179,-500.0,0.0004159,2]
[314106360,1707983447190,-500.0,0.0004159,2]
[314106361,1707983447200,-500.0,0.0004159,2]
[314106362,1707983447210,-500.0,0.0004159,2]
[314106363,1707983447219,-500.0,0.0004159,2]
[314106364,1707983447228,-500.0,0.0004159,2]
[314106365,1707983447238,-500.0,0.0004159,2]
[314106366,1707983447247,-500.0,0.0004159,2]
[314106367,1707983447257,-500.0,0.0004159,2]
[314106368,1707983447266,-500.0,0.0004159,2]
[314106369,1707983447275,-500.0,0.0004159,2]
[314106370,1707983447285,-500.0,0.0004159,2]
[314106371,1707983447294,-500.0,0.0004159,2]
[314106372,1707983447304,-500.0,0.0004159,2]
[314106373,1707983447313,-500.0,0.0004159,2]
[314106374,1707983447323,-500.0,0.0004159,2]
[314106375,1707983447333,-500.0,0.0004159,2]
[314106376,1707983447343,-500.0,0.0004159,2]
[314106377,1707983447352,-500.0,0.0004159,2]
[314106378,1707983447362,-500.0,0.0004159,2]
[314106379,1707983447371,-500.0,0.0004159,2]
[314106380,1707983447381,-500.0,0.0004159,2]
[314106381,1707983447390,-500.0,0.0004159,2]
[314106382,1707983447400,-500.0,0.0004159,2]
[314106383,1707983447410,-500.0,0.0004159,2]
[314106384,1707983447420,-500.0,0.0004159,2]
[314106385,1707983447430,-500.0,0.0004159,2]
[314106386,1707983447440,-500.0,0.0004159,2]
[314106387,1707983447449,-500.0,0.0004159,2]
[314106388,1707983447459,-500.0,0.0004159,2]
[314106389,1707983447468,-500.0,0.0004159,2]
[314106390,1707983447478,-500.0,0.0004159,2]
[314106391,1707983447487,-500.0,0.0004159,2]
[314106392,1707983447496,-500.0,0.0004159,2]
[314106393,1707983447506,-500.0,0.0004159,2]
[314106394,1707983447516,-500.0,0.0004159,2]
[314106395,1707983447525,-500.0,0.0004159,2]
[314106396,1707983447535,-500.0,0.0004159,2]
[314106397,1707983447544,-300.0,0.0004159,2]
[314106398,1707983447553,-500.0,0.0004159,2]
[314106399,1707983447563,-500.0,0.0004159,2]
[314106400,1707983447572,-500.0,0.0004159,2]
[314106401,1707983447581,-500.0,0.0004159,2]
[314106402,1707983447592,-500.0,0.0004159,2]
[314106403,1707983447603,-500.0,0.0004159,2]
[314106404,1707983447613,-500.0,0.0004159,2]
[314106405,1707983447623,-500.0,0.0004159,2]
[314106406,1707983447635,-500.0,0.0004159,2]
[314106407,1707983447645,-500.0,0.0004159,2]
[314106408,1707983447654,-500.0,0.0004159,2]
[314106409,1707983447664,-500.0,0.0004159,2]
[314106410,1707983447674,-500.0,0.0004159,2]
[314106411,1707983447685,-500.0,0.0004159,2]
[314106412,1707983447697,-500.0,0.0004159,2]
[314106413,1707983447707,-500.0,0.0004159,2]
[314106414,1707983447718,-500.0,0.0004159,2]
[314106415,1707983447728,-500.0,0.0004159,2]
[314106416,1707983447738,-500.0,0.0004159,2]
[314106417,1707983447748,-500.0,0.0004159,2]
[314106418,1707983447757,-500.0,0.0004159,2]
[314106419,1707983447767,-500.0,0.0004159,2]
[314106420,1707983447776,-500.0,0.0004159,2]
[314106421,1707983447786,-500.0,0.0004159,2]
[314106422,1707983447795,-500.0,0.0004159,2]
[314106423,1707983447806,-500.0,0.0004159,2]
[314106424,1707983447816,-500.0,0.0004159,2]
[314106425,1707983447826,-500.0,0.0004159,2]
[314106426,1707983447836,-500.0,0.0004159,2]
[314106427,1707983447846,-500.0,0.0004159,2]
[314106428,1707983447856,-500.0,0.0004159,2]
[314106429,1707983447866,-500.0,0.0004159,2]
[314106430,1707983447876,-500.0,0.0004159,2]
[314106431,1707983447887,-500.0,0.0004159,2]
[314106432,1707983447896,-500.0,0.0004159,2]
[314106433,1707983447906,-500.0,0.0004159,2]
[314106434,1707983447917,-500.0,0.0004159,2]
[314106435,1707983447928,-500.0,0.0004159,2]
[314106436,1707983447940,-500.0,0.0004159,2]
[314106437,1707983447950,-500.0,0.0004159,2]
[314106438,1707983447961,-500.0,0.0004159,2]
[314106439,1707983447971,-500.0,0.0004159,2]
[314106440,1707983447981,-500.0,0.0004159,2]
[314106441,1707983447991,-350.0,0.0004159,2]
[314106442,1707983448002,-500.0,0.0004159,2]
[314106443,1707983448012,-500.0,0.0004159,2]
[314106444,1707983448023,-500.0,0.0004159,2]
[314106445,1707983448034,-500.0,0.0004159,2]
[314106446,1707983448045,-500.0,0.0004159,2]
[314106447,1707983448055,-500.0,0.0004159,2]
[314106448,1707983448066,-500.0,0.0004159,2]
[314106449,1707983448076,-500.0,0.0004159,2]
[314106450,1707983448086,-500.0,0.0004159,2]
[314106451,1707983448097,-500.0,0.0004159,2]
[314106452,1707983448111,-500.0,0.0004159,2]
[314106453,1707983448121,-500.0,0.0004159,2]
[314106454,1707983448132,-500.0,0.0004159,2]
[314106455,1707983448143,-500.0,0.0004159,2]
[314106456,1707983448154,-500.0,0.0004159,2]
[314106457,1707983448163,-500.0,0.0004159,2]